bitfinex/quotes_ETHUSD_20241006
["timestamp","ask_amount","ask_price","bid_price","bid_amount"]
[1728214002751,0.7517,2425.9,2425.5,0.17815188]
[1728214003149,0.7517,2425.9,2425.3,3.01694376]
[1728214003350,0.7517,2425.9,2425.4,0.17826829]
[1728214005090,0.7517,2425.9,2425.4,3.19521205]
[1728214005697,0.7517,2425.9,2425.4,0.17826829]
[1728214007988,0.7517,2425.9,2425.4,3.19554333]
[1728214012673,0.7517,2425.9,2425.4,0.17826829]
[1728214013183,0.7517,2425.9,2425.4,3.19606369]
[1728214015371,0.7517,2425.9,2425.4,0.17826829]
[1728214015869,0.50501811,2426.0,2425.4,0.17826829]
[1728214016072,0.50501811,2426.0,2425.4,3.19606369]
[1728214017411,0.50501811,2426.0,2425.4,0.17826829]
[1728214017568,0.50501811,2426.0,2425.4,3.19606369]
[1728214017868,0.50501811,2426.0,2425.4,0.17826829]
[1728214018270,0.50501811,2426.0,2425.4,3.01768176]
[1728214018574,0.50501811,2426.0,2425.5,0.17815212]
[1728214018913,0.8212,2425.9,2425.5,0.17815212]
[1728214020489,0.8212,2425.9,2425.3,3.01768176]
[1728214020732,0.8212,2425.9,2425.6,0.17803615]
[1728214020888,0.8212,2425.9,2425.3,3.01768176]
[1728214021086,0.8212,2425.9,2425.7,0.17791975]
[1728214021306,0.8212,2425.9,2425.2,5.0]
[1728214021517,0.8212,2425.9,2425.8,0.17780336]
[1728214021999,0.8212,2425.9,2425.4,3.01725005]
[1728214022200,0.8212,2425.9,2425.8,0.17780336]
[1728214022413,0.8212,2425.9,2425.4,3.01725005]
[1728214022586,0.8212,2425.9,2425.8,0.17780336]
[1728214022790,0.8212,2425.9,2425.4,3.01725005]
[1728214022989,0.8212,2425.9,2425.8,0.17780336]
[1728214023288,0.8212,2425.9,2425.4,3.01725005]
[1728214023492,0.8212,2425.9,2425.8,0.17780336]
[1728214023689,0.8212,2425.9,2425.3,3.01725005]
[1728214023886,0.8212,2425.9,2425.8,0.17780336]
[1728214024083,0.8212,2425.9,2425.3,3.01725005]
[1728214024315,0.8212,2425.9,2425.8,0.17780336]
[1728214024515,0.8212,2425.9,2425.3,3.01725005]
[1728214024725,0.8212,2425.9,2425.8,0.17780336]
[1728214024928,0.8212,2425.9,2425.5,3.01725005]
[1728214025085,0.8212,2425.9,2425.8,0.17780336]
[1728214025282,0.8212,2425.9,2425.5,3.01725005]
[1728214025502,0.8212,2425.9,2425.8,0.17780336]
[1728214026028,0.8212,2425.9,2425.4,3.01725005]
[1728214026328,0.8212,2425.9,2425.8,0.17780336]
[1728214026624,1.57704765,2425.9,2425.8,0.17780336]
[1728214026827,1.57704765,2425.9,2425.2,5.0]
[1728214027133,0.75584765,2425.8,2425.2,5.0]
[1728214027347,0.75584765,2425.7,2425.2,5.0]
[1728214027658,0.8212,2425.9,2425.2,5.0]
[1728214027945,0.73643673,2425.8,2425.2,5.0]
[1728214028244,0.8212,2425.9,2425.2,5.0]
[1728214028245,0.46027343,2425.7,2425.2,5.0]
[1728214028448,0.8212,2425.9,2425.3,3.01696758]
[1728214029246,0.8212,2425.9,2425.4,3.01696758]
[1728214030634,0.8212,2425.9,2425.4,3.0174692]
[1728214031283,0.8212,2425.9,2425.4,3.01754593]
[1728214031774,0.8212,2425.9,2425.4,3.0174125]
[1728214034798,0.8212,2425.9,2425.5,0.3794548]
[1728214035764,0.8212,2425.9,2425.6,0.08244442]
[1728214036099,0.8212,2425.9,2425.7,0.17792313]
[1728214036260,0.8212,2425.9,2425.8,0.08244435]
[1728214036605,0.50501811,2426.0,2425.8,0.17780607]
[1728214036784,0.50501811,2426.0,2425.9,0.08243462]
[1728214037105,0.50501811,2426.0,2425.9,0.37898969]
[1728214037314,0.50501811,2426.0,2425.9,0.2837277]
[1728214037494,0.50501811,2426.0,2425.9,0.46141358]
[1728214038567,0.50501811,2426.0,2425.9,0.37898588]
[1728214039469,0.50501811,2426.0,2425.9,0.46141359]
[1728214040508,0.50501811,2426.0,2425.9,0.37898588]
[1728214041389,0.50501811,2426.0,2425.9,0.17768588]
[1728214055455,0.50501811,2426.0,2425.9,0.37898588]
[1728214057282,0.8012,2426.6,2425.9,0.37898588]
[1728214057482,0.8012,2426.6,2426.0,0.08242301]
[1728214057663,0.8012,2426.6,2426.0,0.25997479]
[1728214058961,0.8012,2426.6,2426.0,0.17755178]
[1728214059163,0.8012,2426.6,2426.1,0.08242303]
[1728214059374,0.8012,2426.6,2426.2,0.17454546]
[1728214059575,0.8012,2426.6,2426.3,0.08242304]
[1728214059866,0.8012,2426.6,2426.4,0.17431279]
[1728214060502,0.8012,2426.6,2426.0,0.08242107]
[1728214060704,0.8012,2426.6,2426.5,0.17419647]
[1728214061101,0.8012,2426.6,2425.9,0.2013]
[1728214061564,0.8012,2426.6,2426.0,0.17477816]
[1728214071712,0.8012,2426.6,2426.1,0.08242146]
[1728214072114,0.8012,2426.6,2426.2,0.17445275]
[1728214072303,0.8012,2426.6,2426.3,0.08242045]
[1728214072679,0.8012,2426.6,2426.4,0.17410642]
[1728214073879,0.8012,2426.6,2426.2,0.0824175]
[1728214074109,0.8012,2426.6,2426.5,0.17398383]
[1728214074308,0.8012,2426.6,2426.2,0.08241772]
[1728214074495,0.8012,2426.6,2426.5,0.17398383]
[1728214074695,0.8012,2426.6,2426.1,2.2013]
[1728214075200,0.8012,2426.6,2426.2,0.17428732]
[1728214075698,0.8012,2426.6,2426.3,0.08241781]
[1728214076016,0.8012,2426.6,2426.4,0.25647064]
[1728214077279,0.8012,2426.6,2426.4,0.17405311]
[1728214077790,0.8012,2426.6,2426.5,0.1739368]
[1728214077993,0.8012,2426.6,2426.1,2.2013]
[1728214078303,0.8012,2426.6,2426.2,0.17428575]
[1728214080041,0.8012,2426.6,2426.3,0.08241798]
[1728214080239,0.8012,2426.6,2426.2,0.17428575]
[1728214080441,0.8012,2426.6,2426.1,2.2013]
[1728214080644,0.8012,2426.6,2426.3,0.17414669]
[1728214080968,0.8012,2426.6,2426.2,0.17426302]
[1728214081113,0.8012,2426.6,2426.4,0.17400764]
[1728214081304,0.8012,2426.6,2426.3,0.17412396]
[1728214081508,0.8012,2426.6,2426.5,0.17389133]
[1728214081722,0.8012,2426.6,2426.4,0.17400764]
[1728214081954,0.8012,2426.6,2426.5,0.17389133]
[1728214082239,0.8012,2426.6,2426.1,2.2013]
[1728214082447,0.8012,2426.6,2426.5,0.17389133]
[1728214082632,0.8012,2426.6,2426.1,2.2013]
[1728214082829,0.8012,2426.6,2426.5,0.17389133]
[1728214083023,0.8012,2426.6,2426.1,2.2013]
[1728214083346,0.8012,2426.6,2426.5,0.17389133]
[1728214083541,0.8012,2426.6,2426.1,2.2013]
[1728214083755,0.8012,2426.6,2426.5,0.17389133]
[1728214083953,0.8012,2426.6,2426.1,2.2013]
[1728214084564,0.8012,2426.6,2426.2,0.17412102]
[1728214088648,0.8012,2426.6,2426.3,0.0824179]
[1728214088848,0.8012,2426.6,2426.3,0.25633168]
[1728214089569,0.8012,2426.6,2426.3,0.17391378]
[1728214089935,0.8012,2426.6,2426.1,2.0]
[1728214090135,0.8012,2426.6,2426.4,0.17379747]
[1728214090354,0.8012,2426.6,2426.1,2.0]
[1728214090559,0.8012,2426.6,2426.5,0.17368117]
[1728214090774,0.8012,2426.6,2426.1,2.0]
[1728214091450,0.8012,2426.6,2426.2,0.1740301]
[1728214093371,0.8012,2426.6,2426.0,2.02401978]
[1728214093581,0.8012,2426.6,2426.3,0.17391445]
[1728214093776,0.8012,2426.6,2426.0,2.02401978]
[1728214093977,0.8012,2426.6,2426.4,0.17379814]
[1728214094163,0.8012,2426.6,2426.0,2.02401978]
[1728214094374,0.8012,2426.6,2426.5,0.17368184]
[1728214094685,0.8012,2426.6,2426.5,0.17368721]
[1728214094858,0.8012,2426.6,2425.8,5.0]
[1728214095542,0.8012,2426.6,2425.9,0.17438515]
[1728214099602,0.8012,2426.6,2425.6,3.01522363]
[1728214099811,0.8012,2426.6,2426.0,0.16842258]
[1728214099961,0.8012,2426.6,2425.5,7.03924341]
[1728214100162,0.8012,2426.6,2426.1,0.16830624]
[1728214100461,0.8012,2426.6,2426.2,0.16818991]
[1728214100659,0.8012,2426.6,2425.5,7.03924341]
[1728214100860,0.8012,2426.6,2426.3,0.1680736]
[1728214101103,0.8012,2426.6,2425.5,7.03924341]
[1728214101301,0.8012,2426.6,2425.6,3.21652363]
[1728214101457,0.8012,2426.6,2425.6,3.38541165]
[1728214102308,0.8012,2426.6,2425.6,0.37018802]
[1728214102807,0.8012,2426.6,2425.8,2.0]
[1728214103157,0.8012,2426.6,2425.9,0.16854352]
[1728214106484,0.46434412,2426.5,2425.9,0.16854352]
[1728214106825,0.8181,2426.3,2425.9,0.16854352]
[1728214106985,0.46434412,2426.2,2425.9,0.16854352]
[1728214107184,0.8181,2426.1,2425.9,0.16854352]
[1728214112517,0.8181,2426.1,2426.0,0.08243091]
[1728214113027,0.8266,2426.6,2426.0,0.25085549]
[1728214113327,0.8266,2426.4,2426.0,0.16842458]
[1728214113499,0.8266,2426.4,2425.8,2.0]
[1728214113500,0.46420717,2426.3,2425.8,2.0]
[1728214113704,0.8266,2426.4,2426.1,0.16830824]
[1728214113887,0.46407882,2426.3,2425.8,2.0]
[1728214114092,0.8266,2426.4,2426.2,0.16819191]
[1728214114300,0.46406905,2426.3,2425.8,2.0]
[1728214114539,0.8266,2426.4,2426.3,0.1680756]
[1728214114692,1.29067415,2426.4,2425.8,2.0]
[1728214114892,0.46407415,2426.3,2425.8,2.0]
[1728214115210,0.8266,2426.4,2425.9,0.16854092]
[1728214115416,0.46406805,2426.3,2425.9,0.16854092]
[1728214115591,1.29068256,2426.2,2425.9,0.16854092]
[1728214115790,0.8266,2426.2,2425.6,3.2013]
[1728214115987,0.8266,2426.2,2426.0,0.16842458]
[1728214116215,0.8266,2426.2,2425.6,3.2013]
[1728214116730,0.8266,2426.2,2425.7,0.16877365]
[1728214117605,0.8266,2426.2,2425.8,0.08243529]
[1728214117992,0.8266,2426.2,2425.9,0.1628978]
[1728214123315,0.8266,2426.2,2426.0,0.08243437]
[1728214123522,0.8266,2426.2,2426.0,0.16278146]
[1728214123730,0.8266,2426.2,2425.6,6.21305683]
[1728214123927,0.8266,2426.2,2426.1,0.16266512]
[1728214124131,0.8266,2426.2,2425.8,0.2013]
[1728214124445,0.8266,2426.2,2426.1,0.16266512]
[1728214124913,0.8266,2426.2,2425.8,0.2013]
[1728214125116,0.8266,2426.2,2426.1,0.16266512]
[1728214125306,0.8266,2426.2,2425.8,0.2013]
[1728214125629,0.8266,2426.2,2426.1,0.16266512]
[1728214125830,0.8266,2426.2,2425.8,0.2013]
[1728214126021,0.8266,2426.2,2426.1,0.16266512]
[1728214126211,0.8266,2426.2,2425.8,0.2013]
[1728214126412,0.8266,2426.2,2426.1,0.16266512]
[1728214126633,0.8266,2426.2,2425.8,0.2013]
[1728214127105,0.8266,2426.2,2425.9,0.1628978]
[1728214135661,0.8266,2426.2,2425.9,3.17435215]
[1728214136019,0.8266,2426.2,2426.0,0.08243138]
[1728214136260,0.8266,2426.2,2425.9,3.17435215]
[1728214136574,0.8266,2426.2,2426.0,0.16278006]
[1728214136861,0.8266,2426.2,2425.8,5.01145435]
[1728214137065,0.8266,2426.2,2426.1,0.16266372]
[1728214137227,0.8266,2426.2,2425.8,5.01495201]
[1728214137427,0.8266,2426.2,2426.1,0.16266372]
[1728214137655,0.8266,2426.2,2425.8,5.01495201]
[1728214138273,0.8266,2426.2,2425.9,0.1628964]
[1728214138937,0.8266,2426.2,2425.9,3.17784841]
[1728214139145,0.8266,2426.2,2425.9,0.1628964]
[1728214140444,0.8266,2426.2,2425.9,3.17784841]
[1728214140643,0.8266,2426.2,2425.9,0.1628964]
[1728214140843,0.8266,2426.2,2425.9,3.17784841]
[1728214141040,0.8266,2426.2,2425.9,3.17842262]
[1728214141572,0.8266,2426.2,2425.9,0.1628964]
[1728214142071,0.8266,2426.2,2426.0,0.08243158]
[1728214142670,0.8266,2426.2,2426.0,0.16278006]
[1728214143026,0.8266,2426.2,2425.9,0.08243171]
[1728214143232,0.8266,2426.2,2426.1,0.16266372]
[1728214143427,0.8266,2426.2,2426.0,0.16278006]
[1728214143663,0.8266,2426.2,2426.1,0.16266372]
[1728214144071,0.8266,2426.2,2425.9,0.08243171]
[1728214144373,0.8266,2426.2,2426.0,0.16278218]
[1728214145948,0.8266,2426.2,2425.9,0.08243164]
[1728214146158,0.8266,2426.2,2426.1,0.16266585]
[1728214146349,0.8266,2426.2,2426.0,0.16278218]
[1728214146546,0.8266,2426.2,2426.1,0.16266585]
[1728214147069,0.8266,2426.2,2425.9,0.08243164]
[1728214147234,0.8266,2426.2,2426.1,0.16266585]
[1728214147439,0.8266,2426.2,2426.0,0.16278218]
[1728214147671,0.8266,2426.2,2426.1,0.16266585]
[1728214148036,0.8266,2426.2,2425.9,0.0824318]
[1728214148282,0.8266,2426.2,2426.1,0.16266585]
[1728214148778,0.7608,2426.6,2425.9,0.0824318]
[1728214148982,0.7608,2426.6,2426.1,0.16266585]
[1728214149144,0.7608,2426.6,2426.0,0.16278218]
[1728214149348,0.7608,2426.6,2426.2,0.16254952]
[1728214149568,0.7608,2426.6,2426.1,0.16266585]
[1728214149776,0.7608,2426.6,2426.3,0.1624332]
[1728214149987,0.7608,2426.6,2426.2,0.16254952]
[1728214150154,0.7608,2426.6,2426.4,0.16231689]
[1728214150475,0.7608,2426.6,2426.3,0.1624332]
[1728214150689,0.7608,2426.6,2426.5,0.1622006]
[1728214150878,0.7608,2426.6,2426.4,0.16231689]
[1728214151042,0.7608,2426.6,2426.5,0.1622006]
[1728214151252,0.7608,2426.6,2425.8,2.2013]
[1728214151591,0.7608,2426.6,2425.9,0.16289853]
[1728214156763,0.7608,2426.6,2426.0,0.08242893]
[1728214157287,0.7608,2426.6,2426.1,0.16266495]
[1728214159710,0.7608,2426.6,2425.8,2.2013]
[1728214159711,0.7608,2426.6,2426.2,0.16254862]
[1728214159885,0.7608,2426.6,2425.9,0.08242698]
[1728214160207,0.7608,2426.6,2426.0,0.16278128]
[1728214160385,0.7608,2426.6,2426.1,0.08242699]
[1728214160774,0.7608,2426.6,2426.2,0.16254862]
[1728214161475,0.7608,2426.6,2425.9,0.08242702]
[1728214161815,0.7608,2426.6,2426.0,0.16278128]
[1728214162111,0.7608,2426.6,2426.1,0.08242705]
[1728214162288,0.7608,2426.6,2426.2,0.16254862]
[1728214162694,0.7608,2426.6,2425.9,0.08242706]
[1728214162887,0.7608,2426.6,2426.0,0.16278128]
[1728214163112,0.7608,2426.6,2426.1,0.08242708]
[1728214163274,0.7608,2426.6,2426.2,0.16254862]
[1728214165116,0.7608,2426.6,2425.9,3.0986031]
[1728214165278,0.7608,2426.6,2426.0,0.16278128]
[1728214165477,0.7608,2426.6,2426.1,0.08242713]
[1728214165671,0.7608,2426.6,2426.2,0.16207463]
[1728214165883,0.7608,2426.6,2425.9,3.01558738]
[1728214166083,0.7608,2426.6,2426.0,0.1623073]
[1728214167222,0.7608,2426.6,2425.8,5.21688738]
[1728214167397,0.7608,2426.6,2426.1,0.16062078]
[1728214167586,0.7608,2426.6,2425.9,3.01558738]
[1728214167787,0.7608,2426.6,2426.2,0.16050445]
[1728214168090,0.7608,2426.6,2425.9,3.01558738]
[1728214168493,0.7608,2426.6,2426.0,0.16073712]
[1728214169714,0.7608,2426.6,2425.8,5.21688738]
[1728214170121,0.7608,2426.6,2425.9,0.16085346]
[1728214171021,0.7608,2426.6,2425.9,3.1768773]
[1728214171227,0.7608,2426.6,2425.9,0.16085346]
[1728214174808,0.7608,2426.6,2425.9,3.1768773]
[1728214175423,0.7608,2426.6,2425.9,0.16085346]
[1728214186970,0.7608,2426.6,2425.9,3.17737598]
[1728214187141,0.7608,2426.6,2425.9,0.16085346]
[1728214187342,0.7608,2426.6,2425.9,3.17737598]
[1728214187539,0.7608,2426.6,2425.9,0.16085346]
[1728214187750,0.7608,2426.6,2425.9,3.17737598]
[1728214189640,0.7608,2426.6,2425.9,3.69511358]
[1728214189854,0.7608,2426.6,2425.9,0.67859106]
[1728214190074,0.7608,2426.6,2425.9,3.69385793]
[1728214190427,0.7608,2426.6,2425.9,0.67859106]
[1728214190862,0.7608,2426.6,2425.9,0.16085346]
[1728214192058,0.55,2426.5,2425.9,0.16085346]
[1728214192233,0.7571,2426.4,2425.9,0.16085346]
[1728214192549,0.7571,2426.4,2425.5,5.03924137]
[1728214192729,0.7571,2426.4,2426.0,0.15408901]
[1728214192944,0.7571,2426.4,2425.5,2.02401978]
[1728214193331,0.7571,2426.4,2425.6,0.15455445]
[1728214205044,1.18781,2426.4,2425.7,0.2013]
[1728214205246,0.8086,2426.3,2425.7,0.2013]
[1728214212513,0.8086,2426.3,2425.8,0.08243654]
[1728214212678,0.8086,2426.3,2426.0,0.2013]
[1728214212878,0.8086,2426.3,2426.0,0.72967365]
[1728214213088,0.8086,2426.3,2426.1,0.08242488]
[1728214213484,0.8086,2426.3,2426.0,0.72967365]
[1728214213690,0.8086,2426.3,2426.1,0.08242499]
[1728214213907,0.64013229,2426.8,2426.7,5.3734]
[1728214214112,1.44714552,2426.8,2426.7,5.3734]
[1728214214288,0.64013229,2426.8,2426.7,5.3734]
[1728214216874,1.44873229,2426.8,2426.7,5.3734]
[1728214217691,1.44873229,2426.8,2426.7,5.52158096]
[1728214219832,1.44873229,2426.8,2426.7,0.14818096]
[1728214220327,0.7881,2426.7,2426.0,0.83942337]
[1728214220483,0.7881,2426.7,2426.1,0.08242797]
[1728214220825,0.7881,2426.7,2426.1,0.23130037]
[1728214222215,0.7881,2426.7,2426.1,0.44770244]
[1728214222521,0.7881,2426.7,2426.1,0.1488724]
[1728214222878,0.7881,2426.7,2425.9,2.0]
[1728214223081,0.7881,2426.7,2426.2,0.14875465]
[1728214223283,0.7881,2426.7,2425.9,2.0]
[1728214223529,0.7881,2426.7,2426.3,0.14863834]
[1728214223692,0.7881,2426.7,2425.9,2.0]
[1728214223892,0.7881,2426.7,2426.4,0.14852168]
[1728214224102,0.7881,2426.7,2425.9,2.0]
[1728214224290,0.7881,2426.7,2426.5,0.14840538]
[1728214224496,0.7881,2426.7,2425.9,2.0]
[1728214224698,0.7881,2426.7,2426.6,0.14828891]
[1728214224915,0.7881,2426.7,2425.9,2.0]
[1728214225125,0.7881,2426.7,2426.6,0.14828891]
[1728214225487,0.7881,2426.7,2425.9,2.57694011]
[1728214225688,0.7881,2426.7,2426.6,0.14828891]
[1728214225910,0.7881,2426.7,2425.9,2.57694011]
[1728214226096,3.48324155,2427.0,2426.6,0.14828891]
[1728214226304,0.34832415,2426.9,2425.9,2.0]
[1728214226502,4.03324155,2427.1,2425.9,2.0]
[1728214227028,4.03324155,2427.1,2426.0,0.14898679]
[1728214229215,0.7881,2426.8,2426.0,0.14898679]
[1728214230339,0.7881,2426.8,2426.0,0.90598679]
[1728214230627,0.7881,2426.8,2426.1,0.29059868]
[1728214231005,0.7881,2426.8,2426.2,0.14875465]
[1728214239841,0.7881,2426.8,2426.3,0.7568]
[1728214240201,0.7881,2426.8,2426.4,0.14851974]
[1728214243114,0.7881,2426.8,2426.2,0.7568]
[1728214243314,0.7881,2426.8,2426.5,0.14840237]
[1728214243528,0.7881,2426.8,2426.2,0.7568]
[1728214244140,0.7881,2426.8,2426.3,0.14863498]
[1728214244509,0.7881,2426.8,2426.2,0.7568]
[1728214244731,0.7881,2426.8,2426.4,0.14851867]
[1728214244947,0.7881,2426.8,2426.3,0.14863498]
[1728214245271,0.7881,2426.8,2426.4,0.14851867]
[1728214245713,0.7881,2426.8,2426.2,0.7568]
[1728214245916,0.7881,2426.8,2426.5,0.14840237]
[1728214246151,0.7881,2426.8,2426.2,0.7568]
[1728214246349,0.7881,2426.8,2426.6,0.14828608]
[1728214246549,0.7881,2426.8,2426.2,0.7568]
[1728214247013,0.7881,2426.8,2426.3,0.14863498]
[1728214247322,0.7881,2426.8,2426.2,0.7568]
[1728214247524,0.7881,2426.8,2426.4,0.14851867]
[1728214247727,0.7881,2426.8,2426.3,0.14863498]
[1728214247930,0.7881,2426.8,2426.5,0.14840237]
[1728214248139,0.7881,2426.8,2426.4,0.14851867]
[1728214248348,0.7881,2426.8,2426.6,0.14828608]
[1728214248509,0.7881,2426.8,2426.5,0.14840237]
[1728214248716,1.3381,2426.8,2426.7,0.1481698]
[1728214248981,0.7881,2426.8,2426.6,0.14828608]
[1728214249116,0.7881,2426.8,2426.2,0.7568]
[1728214249655,0.7881,2426.8,2426.3,0.14863498]
[1728214250025,0.7881,2426.8,2426.2,0.7568]
[1728214250236,0.7881,2426.8,2426.4,0.14851867]
[1728214250559,0.7881,2426.8,2426.2,0.7568]
[1728214250743,0.7881,2426.8,2426.5,0.14840237]
[1728214251056,0.7881,2426.8,2426.6,0.14828608]
[1728214251569,0.7881,2426.8,2426.2,0.7568]
[1728214251723,1.3381,2426.8,2426.7,0.1481698]
[1728214251926,1.3381,2426.8,2426.2,0.7568]
[1728214252369,1.3381,2426.8,2426.3,0.14863498]
[1728214252667,1.3381,2426.8,2426.2,0.7568]
[1728214252879,1.3381,2426.8,2426.4,0.14851867]
[1728214253170,1.3381,2426.8,2426.3,0.14863498]
[1728214253378,1.3381,2426.8,2426.5,0.14840237]
[1728214253676,1.3381,2426.8,2426.6,0.14828608]
[1728214254182,1.3381,2426.8,2426.7,0.1481698]
[1728214254474,1.3381,2426.8,2426.2,0.7568]
[1728214254974,1.3381,2426.8,2426.3,0.14863498]
[1728214255175,1.3381,2426.8,2426.2,0.7568]
[1728214255671,1.3381,2426.8,2426.3,0.14863498]
[1728214255978,1.3381,2426.8,2426.2,0.7568]
[1728214256172,1.3381,2426.8,2426.3,0.14863498]
[1728214256374,1.3381,2426.8,2426.2,0.7568]
[1728214256678,1.3381,2426.8,2426.3,0.14863498]
[1728214257036,1.3381,2426.8,2426.2,0.7568]
[1728214257356,1.3381,2426.8,2426.3,0.14863498]
[1728214257545,1.3381,2426.8,2426.2,0.7568]
[1728214257746,1.3381,2426.8,2426.3,0.14863498]
[1728214257965,1.3381,2426.8,2426.2,0.7568]
[1728214258352,1.3381,2426.8,2426.3,0.14863498]
[1728214258564,1.3381,2426.8,2426.2,0.7568]
[1728214258878,1.3381,2426.8,2426.3,0.14863411]
[1728214259373,1.3381,2426.8,2426.2,0.7568]
[1728214259579,1.3381,2426.8,2426.3,0.14863411]
[1728214259754,1.3381,2426.8,2426.2,0.7568]
[1728214259950,1.3381,2426.8,2426.3,0.14863411]
[1728214260170,1.3381,2426.8,2426.2,0.7568]
[1728214260383,1.3381,2426.8,2426.3,0.14863411]
[1728214260588,1.3381,2426.8,2426.2,0.7568]
[1728214260757,1.3381,2426.8,2426.3,0.14863411]
[1728214261087,1.3381,2426.8,2426.2,0.7568]
[1728214261391,1.3381,2426.8,2426.3,0.14863411]
[1728214261597,1.3381,2426.8,2426.2,1.13409071]
[1728214261771,1.3381,2426.8,2426.3,0.14863411]
[1728214262099,1.3381,2426.8,2426.2,1.13409071]
[1728214262303,1.3381,2426.8,2426.4,0.14851781]
[1728214262592,1.3381,2426.8,2426.5,0.14840151]
[1728214262792,1.3381,2426.8,2426.2,0.7568]
[1728214262978,1.3381,2426.8,2426.3,0.14863411]
[1728214263183,1.3381,2426.8,2426.2,0.7568]
[1728214263357,1.3381,2426.8,2426.3,0.14863411]
[1728214263558,1.3381,2426.8,2426.2,0.7568]
[1728214264000,1.3381,2426.8,2426.3,0.14863411]
[1728214264388,1.3381,2426.8,2426.2,0.7568]
[1728214264699,1.3381,2426.8,2426.3,0.14863411]
[1728214265192,1.3381,2426.8,2426.2,0.7568]
[1728214265368,1.3381,2426.8,2426.4,0.14851781]
[1728214265571,1.3381,2426.8,2426.3,0.14863411]
[1728214265877,1.3381,2426.8,2426.4,0.14851781]
[1728214266263,1.3381,2426.8,2426.2,0.7568]
[1728214266469,0.7881,2426.8,2426.5,0.14840151]
[1728214266668,0.7881,2426.8,2426.2,1.13411461]
[1728214267059,0.7881,2426.8,2426.3,0.1486327]
[1728214267584,0.7881,2426.8,2426.2,1.13411461]
[1728214267809,0.7881,2426.8,2426.4,0.14851639]
[1728214268007,0.7881,2426.8,2426.3,0.1486327]
[1728214268222,0.7881,2426.8,2426.5,0.14840009]
[1728214268717,0.7881,2426.8,2426.6,0.1482838]
[1728214269223,0.7881,2426.8,2426.2,1.13411461]
[1728214269432,0.7881,2426.8,2426.7,0.14816752]
[1728214269610,0.7881,2426.8,2426.2,1.13411461]
[1728214269927,0.7881,2426.8,2426.3,0.56367877]
[1728214270619,0.7881,2426.8,2426.3,0.1486327]
[1728214271021,0.7881,2426.8,2426.2,0.7568]
[1728214271518,0.7881,2426.8,2426.3,0.1486327]
[1728214272025,0.7881,2426.8,2426.4,0.14851673]
[1728214272433,0.7881,2426.8,2426.5,0.14840043]
[1728214272835,0.7881,2426.8,2426.6,0.14828414]
[1728214273325,0.7881,2426.8,2426.7,0.14816786]
[1728214273829,0.7881,2426.8,2426.2,0.7568]
[1728214274043,0.7881,2426.8,2426.2,1.14231117]
[1728214274321,0.7881,2426.8,2426.3,0.14863303]
[1728214274528,0.7881,2426.8,2426.2,1.14231117]
[1728214274721,0.7881,2426.8,2426.4,0.14851673]
[1728214274913,0.7881,2426.8,2425.9,5.81308049]
[1728214275112,0.7881,2426.8,2426.5,0.1484006]
[1728214275551,0.7881,2426.8,2426.0,0.58130805]
[1728214275753,0.7881,2426.8,2426.6,0.14828431]
[1728214276073,0.7881,2426.8,2426.0,0.58130805]
[1728214276660,0.7881,2426.8,2426.1,0.14886586]
[1728214277225,0.7881,2426.8,2425.9,0.7972]
[1728214277466,0.7787,2426.8,2426.0,0.14898537]
[1728214277965,0.55,2426.7,2426.0,0.14898537]
[1728214278167,0.7609,2426.6,2426.0,0.14898537]
[1728214291704,0.7609,2426.6,2426.1,0.7781]
[1728214291936,0.7609,2426.6,2426.1,0.92697454]
[1728214292627,0.7609,2426.8,2426.1,0.92697454]
[1728214295348,0.55,2426.9,2426.1,0.92697454]
[1728214297057,1.09393961,2426.9,2426.1,0.92697454]
[1728214297965,0.8046,2426.8,2426.1,0.92697454]
[1728214320779,1.09393961,2426.9,2426.1,0.92697454]
[1728214342906,0.53629494,2426.9,2426.1,0.92697454]
[1728214354354,0.7978,2426.8,2426.1,0.92697454]
[1728214354498,0.7978,2426.6,2426.1,0.92697454]
[1728214355544,0.55,2426.5,2426.1,0.92697454]
[1728214355724,0.7978,2426.4,2426.1,0.14887454]
[1728214355902,1.3478,2426.6,2426.1,0.7726]
[1728214356103,1.3478,2426.6,2426.2,0.13813585]
[1728214356299,1.3478,2426.6,2426.1,0.7726]
[1728214356606,1.3478,2426.6,2426.2,0.13813585]
[1728214356916,1.3478,2426.6,2426.1,0.7726]
[1728214357344,1.3478,2426.6,2426.2,0.13813585]
[1728214357513,1.3478,2426.6,2426.1,0.7726]
[1728214357840,0.55,2426.6,2426.3,0.7726]
[1728214360028,0.49931323,2426.6,2426.3,0.7726]
[1728214360642,0.6453323,2426.7,2426.3,0.7726]
[1728214371669,1.4302323,2426.7,2426.3,0.7726]
[1728214377862,0.6453323,2426.7,2426.3,0.7726]
[1728214381193,3.91142597,2427.0,2426.3,0.7726]
[1728214381555,0.64529706,2426.9,2426.3,0.7726]
[1728214390989,0.64529706,2426.9,2426.4,0.1379098]
[1728214391207,0.64529706,2426.9,2425.7,5.62519]
[1728214391208,0.64529706,2426.9,2426.5,0.7787]
[1728214393785,0.64529706,2426.9,2426.6,0.13767721]
[1728214393982,0.64529706,2426.9,2426.7,0.7787]
[1728214396831,0.64529706,2426.9,2425.8,0.7787]
[1728214397117,0.64529706,2426.9,2425.7,5.0165493]
[1728214397118,0.64529706,2426.9,2426.8,0.13737009]
[1728214397322,0.64529706,2426.9,2426.6,0.7787]
[1728214401310,1.42279706,2426.9,2426.6,0.7787]
[1728214403301,0.64529706,2426.9,2426.6,0.7787]
[1728214403803,0.64529706,2426.9,2426.7,0.13805254]
[1728214432061,0.64529706,2426.9,2426.8,0.7939]
[1728214432264,0.8206,2427.4,2426.8,0.7939]
[1728214432569,0.64520141,2427.2,2426.8,0.7939]
[1728214432754,0.8206,2427.4,2426.8,0.7939]
[1728214433062,0.64519223,2427.3,2426.8,0.7939]
[1728214451083,1.18428031,2427.6,2426.8,0.7939]
[1728214451584,0.42868031,2427.6,2426.8,0.7939]
[1728214451752,0.55,2427.7,2426.8,0.7939]
[1728214451951,0.55,2427.7,2426.9,0.13780545]
[1728214452174,0.55,2427.7,2427.0,0.7533]
[1728214455394,0.7556,2427.6,2427.0,0.7533]